fUSD/lending_fUSD_20240125
["ID","MTS","AMOUNT","RATE_DAILY","PERIOD"]
[312684121,1706145100628,-500.0,0.00050958,31]
[312684122,1706145100637,-500.0,0.00050958,31]
[312684123,1706145100647,-500.0,0.00050958,31]
[312684124,1706145100657,-500.0,0.00050958,31]
[312684125,1706145100667,-500.0,0.00050958,2]
[312684126,1706145100677,-792.61,0.00050958,31]
[312684127,1706145100687,-500.0,0.00050958,31]
[312684128,1706145100696,-500.0,0.00050958,31]
[312684129,1706145100706,-500.0,0.00050958,31]
[312684130,1706145100716,-500.0,0.00050958,31]
[312684131,1706145100727,-500.0,0.00050958,31]
[312684132,1706145100736,-500.0,0.00050958,2]
[312684133,1706145100746,-500.0,0.00050958,31]
[312684134,1706145100755,-379.20914588,0.00050958,31]
[312684135,1706145100765,-500.0,0.00050958,31]
[312684136,1706145100774,-702.69,0.00050958,31]
[312684137,1706145100784,-500.0,0.00050958,31]
[312684138,1706145100794,-500.0,0.00050958,31]
[312684139,1706145100803,-500.0,0.00050958,31]
[312684140,1706145100812,-500.0,0.00050958,31]
[312684141,1706145100822,-668.66,0.00050958,31]
[312684142,1706145100833,-500.0,0.00050958,31]
[312684143,1706145100842,-619.19,0.00050958,31]
[312684144,1706145100852,-500.0,0.00050958,31]
[312684145,1706145100862,-953.39,0.00050958,31]
[312684146,1706145100871,-500.0,0.00050958,31]
[312684147,1706145100881,-500.0,0.00050958,31]
[312684148,1706145100891,-500.0,0.00050958,31]
[312684149,1706145100901,-500.0,0.00050958,31]
[312684150,1706145100911,-500.0,0.00050958,31]
[312684151,1706145100920,-500.0,0.00050958,31]
[312684152,1706145100931,-500.0,0.00050958,31]
[312684153,1706145100942,-500.0,0.00050958,31]
[312684154,1706145100951,-500.0,0.00050958,31]
[312684155,1706145100961,-500.0,0.00050958,31]
[312684156,1706145100970,-524.2,0.00050958,31]
[312684157,1706145100982,-500.0,0.00050958,31]
[312684158,1706145100991,-500.0,0.00050958,31]
[312684159,1706145101002,-500.0,0.00050958,31]
[312684160,1706145101011,-500.0,0.00050958,31]
[312684161,1706145101021,-781.79,0.00050958,31]
[312684162,1706145101032,-485.74437274,0.00050958,31]
[312684163,1706145101042,-500.0,0.00050958,31]
[312684164,1706145101053,-500.0,0.00050958,31]
[312684165,1706145101063,-718.1,0.00050958,31]
[312684166,1706145101073,-500.0,0.00050958,31]
[312684167,1706145101084,-500.0,0.00050958,31]
[312684168,1706145101094,-558.82,0.00050958,31]
[312684169,1706145101103,-647.2064542,0.00050958,31]
[312684170,1706145101112,-500.0,0.00050958,31]
[312684171,1706145101121,-500.0,0.00050958,31]
[312684172,1706145101130,-500.0,0.00050958,31]
[312684173,1706145101140,-500.0,0.00050958,31]
[312684174,1706145101149,-500.0,0.00050958,31]
[312684175,1706145101159,-500.0,0.00050958,31]
[312684176,1706145101169,-500.0,0.00050958,31]
[312684177,1706145101179,-500.0,0.00050958,31]
[312684178,1706145101189,-500.0,0.00050958,31]
[312684179,1706145101199,-500.0,0.00050958,31]
[312684180,1706145101208,-500.0,0.00050958,31]
[312684181,1706145101218,-719.02,0.00050958,31]
[312684182,1706145101228,-500.0,0.00050958,31]
[312684183,1706145101238,-500.0,0.00050958,31]
[312684184,1706145101248,-500.0,0.00050958,31]
[312684185,1706145101258,-530.57,0.00050958,31]
[312684186,1706145101267,-590.77,0.00050958,31]
[312684187,1706145101277,-476.45761077,0.00050958,31]
[312684188,1706145101286,-500.0,0.00050958,31]
[312684189,1706145101295,-500.0,0.00050958,31]
[312684190,1706145101305,-500.0,0.00050958,31]
[312684191,1706145101315,-500.0,0.00050958,31]
[312684192,1706145101324,-500.0,0.00050958,31]
[312684193,1706145101334,-1141.79,0.00050958,31]
[312684194,1706145101344,-500.0,0.00050958,31]
[312684195,1706145101353,-500.0,0.00050958,31]
[312684196,1706145101362,-626.76,0.00050958,31]
[312684197,1706145101371,-500.0,0.00050958,31]
[312684198,1706145101381,-500.0,0.00050958,31]
[312684199,1706145101390,-500.0,0.00050958,31]
[312684200,1706145101399,-500.0,0.00050958,31]
[312684201,1706145101408,-500.0,0.00050958,31]
[312684202,1706145101418,-500.0,0.00050958,31]
[312684203,1706145101427,-500.0,0.00050958,31]
[312684204,1706145101436,-500.0,0.00050958,31]
[312684205,1706145101446,-500.0,0.00050958,31]
[312684206,1706145101456,-500.0,0.00050958,31]
[312684207,1706145101465,-529.72,0.00050958,31]
[312684208,1706145101474,-502.97,0.00050958,31]
[312684209,1706145101484,-500.0,0.00050958,31]
[312684210,1706145101494,-500.0,0.00050958,31]
[312684211,1706145101504,-500.0,0.00050958,31]
[312684212,1706145101512,-500.0,0.00050958,31]
[312684213,1706145101522,-992.14,0.00050958,120]
[312684214,1706145101534,-500.0,0.00050958,31]
[312684215,1706145101543,-500.0,0.00050958,31]
[312684216,1706145101552,-500.0,0.00050958,31]
[312684217,1706145101562,-500.0,0.00050958,31]
[312684218,1706145101573,-500.0,0.00050958,31]
[312684219,1706145101584,-500.0,0.00050958,31]
[312684220,1706145101593,-500.0,0.00050958,31]
[312684221,1706145101603,-500.0,0.00050958,31]
[312684222,1706145101612,-500.0,0.00050958,31]
[312684223,1706145101621,-500.0,0.00050958,31]
[312684224,1706145101630,-500.0,0.00050958,31]
[312684225,1706145101640,-500.0,0.00050958,31]
[312684226,1706145101650,-500.0,0.00050958,31]
[312684227,1706145101660,-537.79125652,0.00050958,60]
[312684228,1706145101669,-500.0,0.00050958,31]
[312684229,1706145101679,-500.0,0.00050958,31]
[312684230,1706145101688,-697.72,0.00050958,2]
[312684231,1706145101697,-500.0,0.00050958,31]
[312684232,1706145101884,-500.0,0.00050958,31]
[312684233,1706145101893,-500.0,0.00050958,31]
[312684234,1706145101902,-500.0,0.00050958,31]
[312684235,1706145101912,-796.46,0.00050958,31]
[312684236,1706145101921,-500.0,0.00050958,31]
[312684237,1706145101930,-500.0,0.00050958,31]
[312684238,1706145101939,-500.0,0.00050958,31]
[312684239,1706145101948,-500.0,0.00050958,31]
[312684240,1706145101957,-500.0,0.00050958,31]
[312684241,1706145101967,-502.99,0.00050958,31]
[312684242,1706145101976,-500.0,0.00050958,31]
[312684243,1706145101985,-500.0,0.00050958,31]
[312684244,1706145101996,-500.0,0.00050958,31]
[312684245,1706145102005,-1084.63,0.00050958,31]
[312684246,1706145102015,-500.0,0.00050958,31]
[312684247,1706145102024,-500.0,0.00050958,31]
[312684248,1706145102034,-500.0,0.00050958,31]
[312684249,1706145102043,-500.0,0.00050958,31]
[312684250,1706145102052,-500.0,0.00050958,31]
[312684251,1706145102062,-500.0,0.00050958,31]
[312684252,1706145102071,-332.44333406,0.00050958,31]
[312684253,1706145102081,-1233.91,0.00050958,7]
[312684254,1706145102090,-500.0,0.00050958,31]
[312684255,1706145102099,-500.0,0.00050958,31]
[312684256,1706145102109,-500.0,0.00050958,31]
[312684257,1706145102119,-500.0,0.00050958,31]
[312684258,1706145102129,-500.0,0.00050958,31]
[312684259,1706145102141,-500.0,0.00050958,31]
[312684260,1706145102150,-500.0,0.00050958,14]
[312684261,1706145102159,-500.0,0.00050958,31]
[312684262,1706145102169,-500.0,0.00050958,31]
[312684263,1706145102178,-500.0,0.00050958,31]
[312684264,1706145102188,-500.0,0.00050958,31]
[312684265,1706145102197,-500.0,0.00050958,31]
[312684266,1706145102206,-500.0,0.00050958,31]
[312684267,1706145102218,-566.84181796,0.00050958,31]
[312684268,1706145102227,-500.0,0.00050958,31]
[312684269,1706145102237,-500.0,0.00050958,31]
[312684270,1706145102246,-500.0,0.00050958,31]
[312684271,1706145102255,-500.0,0.00050958,31]
[312684272,1706145102265,-669.25,0.00050958,20]
[312684273,1706145102275,-500.0,0.00050958,31]
[312684274,1706145102284,-500.0,0.00050958,31]
[312684275,1706145102294,-500.0,0.00050958,31]
[312684276,1706145102303,-500.0,0.00050958,31]
[312684277,1706145102313,-500.0,0.00050958,31]
[312684278,1706145102322,-1309.13,0.00050958,7]
[312684279,1706145102333,-500.0,0.00050958,31]
[312684280,1706145102343,-500.0,0.00050958,31]
[312684281,1706145102352,-500.0,0.00050958,31]
[312684282,1706145102362,-500.0,0.00050958,31]
[312684283,1706145102371,-520.3,0.00050958,31]
[312684284,1706145102381,-500.0,0.00050958,31]
[312684285,1706145102390,-500.0,0.00050958,31]
[312684286,1706145102399,-500.0,0.00050958,31]
[312684287,1706145102408,-500.0,0.00050958,31]
[312684288,1706145102417,-500.0,0.00050958,31]
[312684289,1706145102426,-500.0,0.00050958,31]
[312684290,1706145102436,-983.18,0.00050958,31]
[312684291,1706145102445,-500.0,0.00050958,31]
[312684292,1706145102454,-523.88,0.00050958,31]
[312684293,1706145102464,-464.05109335,0.00050958,31]
[312684294,1706145102473,-500.0,0.00050958,31]
[312684295,1706145102483,-500.0,0.00050958,31]
[312684296,1706145102492,-500.0,0.00050958,31]
[312684297,1706145102501,-244.23690601,0.00050958,31]
[312684298,1706145102511,-1157.14,0.00050958,31]
[312684299,1706145102520,-500.0,0.00050958,31]
[312684300,1706145102530,-500.0,0.00050958,31]
[312684301,1706145102542,-500.0,0.00050958,31]
[312684302,1706145102552,-500.0,0.00050958,31]
[312684303,1706145102561,-500.0,0.00050958,31]
[312684304,1706145102571,-500.0,0.00050958,31]
[312684305,1706145102583,-594.98,0.00050958,31]
[312684306,1706145102591,-500.0,0.00050958,31]
[312684307,1706145102601,-500.0,0.00050958,31]
[312684308,1706145102611,-500.0,0.00050958,31]
[312684309,1706145102622,-500.0,0.00050958,31]
[312684310,1706145102632,-500.0,0.00050958,31]
[312684311,1706145102641,-500.0,0.00050958,31]
[312684312,1706145102651,-621.48,0.00050958,31]
[312684313,1706145102660,-500.0,0.00050958,31]
[312684314,1706145102669,-659.17,0.00050958,31]
[312684315,1706145102678,-500.0,0.00050958,31]
[312684316,1706145102687,-500.0,0.00050958,31]
[312684317,1706145102697,-701.09,0.00050958,31]
[312684318,1706145102705,-500.0,0.00050958,31]
[312684319,1706145102716,-1697.01,0.00050958,31]
[312684320,1706145102726,-500.0,0.00050958,31]
[312684321,1706145102735,-500.0,0.00050958,31]
[312684322,1706145102744,-500.0,0.00050958,31]
[312684323,1706145102754,-500.0,0.00050958,31]
[312684324,1706145102763,-500.0,0.00050958,31]
[312684325,1706145102774,-500.0,0.00050958,31]
[312684326,1706145102783,-500.0,0.00050958,31]
[312684327,1706145102792,-523.57,0.00050958,31]
[312684328,1706145102802,-500.0,0.00050958,31]
[312684329,1706145102811,-728.06,0.00050958,31]
[312684330,1706145102821,-500.0,0.00050958,31]
[312684331,1706145102830,-511.53,0.00050958,31]
[312684332,1706145102839,-500.0,0.00050958,31]
[312684333,1706145102848,-500.0,0.00050958,31]
[312684334,1706145102858,-500.0,0.00050958,31]
[312684335,1706145102867,-500.0,0.00050958,31]
[312684336,1706145102878,-665.87,0.00050958,31]
[312684337,1706145102888,-698.55,0.00050958,31]
[312684338,1706145102898,-500.0,0.00050958,31]
[312684339,1706145102907,-535.75,0.00050958,31]
[312684340,1706145102918,-500.0,0.00050958,31]
[312684341,1706145102927,-500.0,0.00050958,31]
[312684342,1706145102936,-500.0,0.00050958,31]
[312684343,1706145102948,-973.03,0.00050958,2]
[312684344,1706145102958,-3653.94,0.00050958,31]
[312684345,1706145102967,-944.79,0.00050958,31]
[312684346,1706145102977,-500.0,0.00050958,31]
[312684347,1706145102988,-500.0,0.00050958,31]
[312684348,1706145102997,-500.0,0.00050958,31]
[312684349,1706145103006,-500.0,0.00050958,31]
[312684350,1706145103015,-517.29,0.00050958,31]
[312684351,1706145103025,-766.32,0.00050958,31]
[312684352,1706145103035,-578.45,0.00050958,31]
[312684353,1706145103044,-500.0,0.00050958,31]
[312684354,1706145103053,-500.0,0.00050958,31]
[312684355,1706145103063,-500.0,0.00050958,31]
[312684356,1706145103072,-500.0,0.00050958,31]
[312684357,1706145103082,-571.27,0.00050958,31]
[312684358,1706145103091,-500.0,0.00050958,31]
[312684359,1706145103100,-8715.7,0.00050958,31]
[312684360,1706145103110,-500.0,0.00050958,31]
[312684361,1706145103119,-1119.03,0.00050958,2]
[312684362,1706145103129,-500.0,0.00050958,31]
[312684363,1706145103138,-563.62,0.00050958,31]
[312684364,1706145103147,-203.82,0.00050958,31]
[312684365,1706145103155,-500.0,0.00050958,31]
[312684366,1706145103165,-395.03112958,0.00050958,31]
[312684367,1706145103174,-551.67,0.00050958,31]
[312684368,1706145103183,-1258.54,0.00050958,31]
[312684369,1706145103192,-797.85,0.00050958,31]
[312684370,1706145103201,-500.0,0.00050958,31]
[312684371,1706145103211,-500.0,0.00050958,31]
[312684372,1706145103220,-500.0,0.00050958,31]
[312684373,1706145103229,-500.0,0.00050958,31]
[312684374,1706145103238,-500.0,0.00050958,31]
[312684375,1706145103247,-524.49,0.00050958,31]
[312684376,1706145103257,-1041.4,0.00050958,31]
[312684377,1706145103266,-500.0,0.00050958,31]
[312684378,1706145103275,-500.0,0.00050958,31]
[312684379,1706145103285,-500.0,0.00050958,31]
[312684380,1706145103294,-572.67,0.00050958,31]
[312684381,1706145103303,-500.0,0.00050958,31]
[312684382,1706145103313,-1295.76,0.00050958,31]
[312684383,1706145103322,-866.53,0.00050958,31]
[312684384,1706145103333,-500.0,0.00050958,31]
[312684385,1706145103342,-717.84,0.00050958,31]
[312684386,1706145103351,-531.79,0.00050958,31]
[312684387,1706145103360,-500.0,0.00050958,31]
[312684388,1706145103370,-500.0,0.00050958,31]
[312684389,1706145103379,-543.89,0.00050958,31]
[312684390,1706145103389,-500.0,0.00050958,31]
[312684391,1706145103398,-1360.18,0.00050958,31]
[312684392,1706145103407,-1845.53,0.00050958,31]
[312684393,1706145103416,-500.0,0.00050958,31]
[312684394,1706145103425,-500.0,0.00050958,31]
[312684395,1706145103434,-738.6,0.00050958,31]
[312684396,1706145103444,-645.65,0.00050958,31]
[312684397,1706145103453,-541.32,0.00050958,31]
[312684398,1706145103462,-500.0,0.00050958,31]
[312684399,1706145103471,-500.0,0.00050958,31]
[312684400,1706145103480,-500.0,0.00050958,31]
[312684401,1706145103489,-591.74194263,0.00050958,31]
[312684402,1706145103498,-569.14,0.00050958,31]
[312684403,1706145103507,-500.0,0.00050958,31]
[312684404,1706145103517,-500.0,0.00050958,31]
[312684405,1706145103527,-500.0,0.00050958,31]
[312684406,1706145103541,-567.82,0.00050958,31]
[312684407,1706145103551,-959.04,0.00050958,31]
[312684408,1706145103561,-524.16492679,0.00050958,31]
[312684409,1706145103571,-672.35,0.00050958,31]
[312684410,1706145103581,-500.0,0.00050958,31]
[312684411,1706145103590,-500.0,0.00050958,31]
[312684412,1706145103599,-500.0,0.00050958,31]
[312684413,1706145103610,-3857.57,0.00050958,5]
[312684414,1706145103620,-1206.46,0.00050958,31]
[312684415,1706145103630,-608.48,0.00050958,31]
[312684416,1706145103641,-500.0,0.00050958,31]
[312684417,1706145103650,-2393.75,0.00050958,31]
[312684418,1706145103659,-1000.0,0.00050958,2]
[312684419,1706145103668,-500.0,0.00050958,31]
[312684420,1706145103677,-681.13,0.00050958,31]
[312684421,1706145103686,-500.0,0.00050958,31]
[312684422,1706145103696,-683.16,0.00050958,31]
[312684423,1706145103707,-714.81,0.00050958,31]
[312684424,1706145103716,-500.0,0.00050958,31]
[312684425,1706145103726,-500.0,0.00050958,31]
[312684426,1706145103736,-500.0,0.00050958,31]
[312684427,1706145103746,-966.39,0.00050958,31]
[312684428,1706145103755,-5066.61,0.00050958,31]
[312684429,1706145103765,-585.71,0.00050958,31]
[312684430,1706145103774,-2701.77,0.00050958,31]
[312684431,1706145103784,-535.75,0.00050958,31]
[312684432,1706145103794,-500.0,0.00050958,31]
[312684433,1706145103803,-2453.54,0.00050958,31]
[312684434,1706145103812,-532.81,0.00050958,31]
[312684435,1706145103821,-2066.55,0.00050958,31]
[312684436,1706145103831,-687.75,0.00050958,31]
[312684437,1706145103840,-580.27,0.00050958,31]
[312684438,1706145103849,-5784.02,0.00050958,31]
[312684439,1706145103858,-1006.46,0.00050958,31]
[312684440,1706145103868,-500.0,0.00050958,31]
[312684441,1706145103877,-500.0,0.00050958,31]
[312684442,1706145103886,-500.0,0.00050958,31]
[312684443,1706145103895,-500.0,0.00050958,31]
[312684444,1706145103904,-537.04,0.00050958,31]
[312684445,1706145103915,-500.0,0.00050958,31]
[312684446,1706145103925,-835.92,0.00050958,31]
[312684447,1706145103935,-584.5,0.00050958,31]
[312684448,1706145103946,-742.38,0.00050958,31]
[312684449,1706145103955,-500.0,0.00050958,31]
[312684450,1706145103965,-660.52,0.00050958,31]
[312684451,1706145103974,-500.0,0.00050958,31]
[312684452,1706145103983,-500.0,0.00050958,31]
[312684453,1706145103992,-540.87,0.00050958,31]
[312684454,1706145104002,-1086.36,0.00050958,31]
[312684455,1706145104011,-1735.79,0.00050958,31]
[312684456,1706145104020,-650.74,0.00050958,31]
[312684457,1706145104030,-500.0,0.00050958,31]
[312684458,1706145104039,-500.0,0.00050958,31]
[312684459,1706145104048,-500.0,0.00050958,31]
[312684460,1706145104058,-677.43,0.00050958,31]
[312684461,1706145104067,-500.0,0.00050958,31]
[312684462,1706145104077,-700.44,0.00050958,31]
[312684463,1706145104088,-500.0,0.00050958,31]
[312684464,1706145104097,-1060.9,0.00050958,31]
[312684465,1706145104107,-500.55,0.00050958,31]
[312684466,1706145104116,-500.0,0.00050958,31]
[312684467,1706145104126,-500.0,0.00050958,31]
[312684468,1706145104136,-547.24,0.00050958,31]
[312684469,1706145104146,-2280.94,0.00050958,31]
[312684470,1706145104158,-552.79,0.00050958,31]
[312684471,1706145104167,-1320.68,0.00050958,31]
[312684472,1706145104177,-500.0,0.00050958,31]
[312684473,1706145104187,-1247.14,0.00050958,31]
[312684474,1706145104197,-500.0,0.00050958,31]
[312684475,1706145104207,-500.0,0.00050958,31]
[312684476,1706145104216,-581.01,0.00050958,31]
[312684477,1706145104226,-712.54,0.00050958,31]
[312684478,1706145104236,-500.0,0.00050958,31]
[312684479,1706145104247,-500.0,0.00050958,31]
[312684480,1706145104257,-500.0,0.00050958,31]
[312684481,1706145104267,-608.94,0.00050958,31]
[312684482,1706145104276,-500.0,0.00050958,31]
[312684483,1706145104287,-693.55,0.00050958,31]
[312684484,1706145104297,-500.0,0.00050958,31]
[312684485,1706145104307,-500.0,0.00050958,31]
[312684486,1706145104316,-500.0,0.00050958,31]
[312684487,1706145104479,-500.0,0.00050958,31]
[312684488,1706145104489,-887.42,0.00050958,31]
[312684489,1706145104499,-500.0,0.00050958,31]
[312684490,1706145104508,-633.04,0.00050958,31]
[312684491,1706145104517,-500.0,0.00050958,31]
[312684492,1706145104528,-706.67,0.00050958,31]
[312684493,1706145104539,-500.0,0.00050958,31]
[312684494,1706145104549,-778.86,0.00050958,31]
[312684495,1706145104559,-4966.08,0.00050958,31]
[312684496,1706145104568,-639.06,0.00050958,31]
[312684497,1706145104578,-712.26,0.00050958,31]
[312684498,1706145104588,-1315.35,0.00050958,31]
[312684499,1706145104598,-500.0,0.00050958,31]
[312684500,1706145104607,-740.74,0.00050958,31]
[312684501,1706145104618,-564.19,0.00050958,31]
[312684502,1706145104627,-645.15,0.00050958,31]
[312684503,1706145104636,-500.0,0.00050958,31]
[312684504,1706145104646,-1073.61,0.00050958,31]
[312684505,1706145104655,-765.5,0.00050958,31]
[312684506,1706145104664,-500.0,0.00050958,31]
[312684507,1706145104673,-539.53,0.00050958,31]
[312684508,1706145104683,-751.1,0.00050958,31]
[312684509,1706145104692,-553.53,0.00050958,31]
[312684510,1706145104701,-500.0,0.00050958,31]
[312684511,1706145104710,-500.0,0.00050958,31]
[312684512,1706145104721,-537.1,0.00050958,31]
[312684513,1706145104732,-608.69,0.00050958,31]
[312684514,1706145104743,-649.59,0.00050958,31]
[312684515,1706145104752,-3061.04,0.00050958,31]
[312684516,1706145104761,-875.62,0.00050958,31]
[312684517,1706145104770,-769.1,0.00050958,31]
[312684518,1706145104780,-500.0,0.00050958,31]
[312684519,1706145104789,-1451.54,0.00050958,31]
[312684520,1706145104798,-500.0,0.00050958,31]
[312684521,1706145104807,-860.59,0.00050958,31]
[312684522,1706145104816,-500.0,0.00050958,31]
[312684523,1706145104825,-703.22,0.00050958,31]
[312684524,1706145104836,-992.0,0.00050958,31]
[312684525,1706145104847,-737.72,0.00050958,31]
[312684526,1706145104858,-500.0,0.00050958,31]
[312684527,1706145104868,-658.3,0.00050958,31]
[312684528,1706145104878,-500.0,0.00050958,31]
[312684529,1706145104887,-500.0,0.00050958,31]
[312684530,1706145104899,-500.0,0.00050958,31]
[312684531,1706145104909,-500.0,0.00050958,31]
[312684532,1706145104921,-500.0,0.00050958,31]
[312684533,1706145104933,-655.7,0.00050958,31]
[312684534,1706145104944,-599.29,0.00050958,31]
[312684535,1706145104955,-764.66,0.00050958,31]
[312684536,1706145104965,-500.0,0.00050958,31]
[312684537,1706145104975,-3144.18,0.00050958,31]
[312684538,1706145104985,-548.31,0.00050958,31]
[312684539,1706145104995,-673.27,0.00050958,31]
[312684540,1706145105004,-500.0,0.00050958,31]
[312684541,1706145105014,-765.11,0.00050958,31]
[312684542,1706145105023,-730.54,0.00050958,31]
[312684543,1706145105033,-500.0,0.00050958,31]
[312684544,1706145105042,-500.0,0.00050958,31]
[312684545,1706145105052,-515.5,0.00050958,31]
[312684546,1706145105062,-1987.70230644,0.00050958,14]
[312684547,1706145105072,-1295.4,0.00050958,31]
[312684548,1706145105082,-618.61,0.00050958,31]
[312684549,1706145105091,-353.88457745,0.00050958,31]
[312684550,1706145105101,-500.0,0.00050958,31]
[312684551,1706145105111,-500.0,0.00050958,31]
[312684552,1706145105120,-792.67,0.00050958,31]
[312684553,1706145105130,-600.26,0.00050958,31]
[312684554,1706145105139,-1247.69,0.00050958,31]
[312684555,1706145105149,-500.0,0.00050958,31]
[312684556,1706145105160,-501.79,0.00050958,31]
[312684557,1706145105169,-678.69,0.00050958,31]
[312684558,1706145105179,-748.16,0.00050958,31]
[312684559,1706145105189,-689.9,0.00050958,31]
[312684560,1706145105199,-3710.41,0.00050958,31]
[312684561,1706145105209,-500.0,0.00050958,120]
[312684562,1706145105219,-1129.79,0.00050958,31]
[312684563,1706145105229,-500.0,0.00050958,31]
[312684564,1706145105239,-500.0,0.00050958,31]
[312684565,1706145105249,-560.58,0.00050958,31]
[312684566,1706145105258,-500.0,0.00050958,31]
[312684567,1706145105268,-500.0,0.00050958,31]
[312684568,1706145105277,-2615.23,0.00050958,31]
[312684569,1706145105287,-536.66,0.00050958,31]
[312684570,1706145105296,-1281.32,0.00050958,31]
[312684571,1706145105306,-537.86596482,0.00050958,31]
[312684572,1706145105315,-820.44,0.00050958,31]
[312684573,1706145105325,-500.0,0.00050958,31]
[312684574,1706145105335,-1013.31,0.00050958,31]
[312684575,1706145105345,-500.0,0.00050958,31]
[312684576,1706145105355,-500.0,0.00050958,31]
[312684577,1706145105365,-571.87,0.00050958,31]
[312684578,1706145105374,-500.0,0.00050958,31]
[312684579,1706145105383,-605.74,0.00050958,31]
[312684580,1706145105393,-500.0,0.00050958,31]
[312684581,1706145105402,-500.0,0.00050958,31]
[312684582,1706145105411,-500.0,0.00050958,31]
[312684583,1706145105420,-537.66,0.00050958,31]
[312684584,1706145105429,-756.21,0.00050958,31]
[312684585,1706145105438,-594.93,0.00050958,2]
[312684586,1706145105447,-500.0,0.00050958,31]
[312684587,1706145105457,-500.0,0.00050958,31]
[312684588,1706145105470,-724.25,0.00050958,31]
[312684589,1706145105479,-724.18,0.00050958,31]
[312684590,1706145105489,-2993.87,0.00050958,31]
[312684591,1706145105498,-618.86,0.00050958,31]
[312684592,1706145105507,-612.72,0.00050958,31]
[312684593,1706145105517,-500.0,0.00050958,31]
[312684594,1706145105531,-500.0,0.00050958,31]
[312684595,1706145105542,-500.0,0.00050958,31]
[312684596,1706145105552,-887.79,0.00050958,31]
[312684597,1706145105562,-514.92,0.00050958,31]
[312684598,1706145105573,-500.0,0.00050958,31]
[312684599,1706145105584,-1822.59,0.00050958,2]
[312684600,1706145105593,-500.0,0.00050958,31]
[312684601,1706145105604,-939.98,0.00050958,31]
[312684602,1706145105614,-1226.02,0.00050958,31]
[312684603,1706145105623,-500.0,0.00050958,31]
[312684604,1706145105643,-500.0,0.00050958,31]
[312684605,1706145105663,-500.0,0.00050958,31]
[312684606,1706145105681,-508.04,0.00050958,31]
[312684607,1706145105701,-500.0,0.00050958,31]
[312684608,1706145105717,-500.0,0.00050958,31]
[312684609,1706145105737,-681.8,0.00050958,31]
[312684610,1706145105757,-646.07,0.00050958,31]
[312684611,1706145105774,-836.07,0.00050958,31]
[312684612,1706145105794,-151.0,0.00050958,2]
[312684613,1706145105812,-200.0,0.00050987,40]
[312684614,1706145105831,-200.0,0.00050987,50]
[312684615,1706145105853,-200.0,0.00050987,60]
[312684616,1706145105868,-200.0,0.00050987,75]
[312684617,1706145105885,-2999.999999,0.00051,45]
[312684618,1706145105904,-237.67083947,0.00051,30]
[312684619,1706145105920,-3587.32403862,0.00051,120]
[312684620,1706145105938,-14486.50215289,0.00051,2]